bitfinex/quotes_SOLUSD_20230401
["timestamp","ask_amount","ask_price","bid_price","bid_amount"]
[1680383289954,36.76,21.1,21.086,17.0]
[1680383290155,26.76,21.1,21.087,10.0]
[1680383290330,26.76,21.1,21.088,17.0]
[1680383295668,26.76,21.1,21.082,10.0]
[1680383295845,27.0,21.099,21.082,10.0]
[1680383296044,10.0,21.097,21.082,10.0]
[1680383296935,10.0,21.097,21.084,17.0]
[1680383298941,10.0,21.097,21.082,10.0]
[1680383299264,10.0,21.097,21.076,118.0874]
[1680383299265,26.72,21.09,21.076,118.0874]
[1680383299458,10.0,21.089,21.076,118.0874]
[1680383300459,10.0,21.089,21.074,18.972285]
[1680383301543,23.712,21.086,21.074,18.972285]
[1680383301748,27.0,21.085,21.074,18.972285]
[1680383302356,10.0,21.084,21.074,18.972285]
[1680383302554,10.0,21.085,21.074,18.972285]
[1680383304048,10.0,21.083,21.074,18.972285]
[1680383304248,10.0,21.085,21.074,18.972285]
[1680383305365,17.0,21.084,21.074,18.972285]
[1680383306271,10.0,21.085,21.074,18.972285]
[1680383306855,10.0,21.089,21.075,10.0]
[1680383307271,17.0,21.088,21.075,10.0]
[1680383307568,10.0,21.089,21.075,10.0]
[1680383308460,10.0,21.087,21.075,10.0]
[1680383309674,10.0,21.087,21.074,18.972285]
[1680383311754,17.0,21.086,21.074,18.972285]
[1680383311960,10.0,21.085,21.074,18.972285]
[1680383312463,10.0,21.085,21.066,10.0]
[1680383312661,10.0,21.085,21.067,20.0]
[1680383312872,10.0,21.085,21.068,27.0]
[1680383313073,10.0,21.085,21.069,20.0]
[1680383313259,10.0,21.085,21.07,27.0]
[1680383313459,10.0,21.085,21.071,20.0]
[1680383313665,10.0,21.085,21.072,10.0]
[1680383315658,17.0,21.084,21.072,10.0]
[1680383316463,10.0,21.083,21.071,20.0]
[1680383316659,17.0,21.082,21.071,20.0]
[1680383316859,10.0,21.083,21.071,20.0]
[1680383317474,10.0,21.085,21.071,20.0]
[1680383317865,10.0,21.083,21.071,20.0]
[1680383318376,10.0,21.086,21.071,20.0]
[1680383318559,17.0,21.085,21.072,10.0]
[1680383319766,10.0,21.084,21.072,10.0]
[1680383319974,10.0,21.082,21.071,20.0]
[1680383320164,10.0,21.082,21.07,10.0]
[1680383320478,10.0,21.082,21.071,20.0]
[1680383320679,17.0,21.081,21.071,20.0]
[1680383321979,10.0,21.084,21.072,10.0]
[1680383322160,17.0,21.083,21.072,10.0]
[1680383323379,17.0,21.083,21.071,20.0]
[1680383325279,26.88,21.08,21.071,20.0]
[1680383325883,26.88,21.08,21.066,10.0]
[1680383326186,10.0,21.079,21.066,10.0]
[1680383326759,10.0,21.079,21.065,120.0971]
[1680383326760,10.0,21.079,21.065,110.0971]
[1680383326961,17.0,21.078,21.058,23.743]
[1680383327468,10.0,21.077,21.062,10.0]
[1680383327787,17.0,21.076,21.062,10.0]
[1680383328368,10.0,21.075,21.062,10.0]
[1680383329579,17.0,21.076,21.062,10.0]
[1680383329768,17.0,21.077,21.062,10.0]
[1680383330189,115.7971,21.078,21.063,17.0]
[1680383330477,115.7971,21.078,21.064,10.0]
[1680383331267,115.7971,21.078,21.065,17.0]
[1680383331469,115.7971,21.078,21.066,10.0]
[1680383337582,26.69,21.08,21.066,10.0]
[1680383337888,26.69,21.08,21.068,10.0]
[1680383338782,26.69,21.08,21.069,17.0]
[1680383342291,26.69,21.08,21.07,10.0]
[1680383342485,114.4707,21.087,21.071,17.0]
[1680383342868,114.4707,21.087,21.072,10.0]
[1680383343076,114.4707,21.087,21.073,17.0]
[1680383343382,114.4707,21.087,21.074,10.0]
[1680383343583,114.4707,21.087,21.075,17.0]
[1680383343797,114.4707,21.087,21.074,10.0]
[1680383349678,114.4707,21.087,21.072,10.0]
[1680383349995,10.0,21.085,21.07,10.0]
[1680383350190,17.0,21.084,21.07,10.0]
[1680383351095,10.0,21.085,21.07,10.0]
[1680383351283,114.4707,21.087,21.071,17.0]
[1680383352075,114.4707,21.087,21.072,10.0]
[1680383352275,114.4707,21.087,21.073,17.0]
[1680383352990,114.4707,21.087,21.074,10.0]
[1680383363303,114.4707,21.087,21.076,10.0]
[1680383366895,114.4707,21.087,21.078,10.0]
[1680383367097,114.4707,21.087,21.079,17.0]
[1680383369000,114.4707,21.087,21.078,10.0]
[1680383369509,114.4707,21.087,21.076,10.0]
[1680383369806,114.4707,21.087,21.074,10.0]
[1680383370311,114.4707,21.087,21.072,10.0]
[1680383370604,17.0,21.086,21.07,10.0]
[1680383370995,10.0,21.085,21.07,10.0]
[1680383371815,10.0,21.085,21.072,17.0]
[1680383373906,114.4707,21.087,21.073,10.0]
[1680383374093,114.4707,21.087,21.074,17.0]
[1680383376213,114.4707,21.087,21.075,10.0]
[1680383379306,114.4707,21.087,21.076,17.0]
[1680383379811,114.4707,21.087,21.077,10.0]
[1680383380504,114.4707,21.087,21.075,10.0]
[1680383381010,114.4707,21.087,21.068,10.0]
[1680383381218,135.302,21.086,21.069,20.0]
[1680383381711,10.0,21.085,21.07,10.0]
[1680383381898,17.0,21.084,21.07,10.0]
[1680383382097,10.0,21.083,21.07,10.0]
[1680383385115,17.0,21.084,21.07,10.0]
[1680383385116,118.302,21.086,21.07,10.0]
[1680383385417,118.302,21.086,21.072,10.0]
[1680383385619,118.302,21.086,21.073,17.0]
[1680383385818,118.302,21.086,21.074,10.0]
[1680383395825,118.302,21.086,21.072,10.0]
[1680383397322,118.302,21.086,21.074,10.0]
[1680383397528,118.302,21.086,21.075,17.0]
[1680383397823,118.302,21.086,21.076,10.0]
[1680383398618,118.302,21.086,21.078,10.0]
[1680383401225,118.302,21.086,21.076,10.0]
[1680383414345,118.302,21.086,21.078,10.0]
[1680383416353,118.302,21.086,21.076,10.0]
[1680383416534,118.302,21.086,21.074,10.0]
[1680383419036,118.302,21.086,21.069,10.0]
[1680383419236,17.0,21.085,21.069,10.0]
[1680383419440,10.0,21.084,21.069,10.0]
[1680383423646,10.0,21.084,21.063,18.981106]
[1680383423647,17.0,21.083,21.063,18.981106]
[1680383423832,26.72,21.08,21.064,30.0]
[1680383424036,10.0,21.078,21.063,18.981106]
[1680383424332,10.0,21.078,21.064,10.0]
[1680383424852,10.0,21.078,21.063,18.981106]
[1680383425238,10.0,21.076,21.063,18.981106]
[1680383425641,17.0,21.075,21.063,18.981106]
[1680383431159,17.13032348,21.078,21.063,18.981106]
[1680383431160,17.0,21.077,21.063,18.981106]
[1680383431341,10.0,21.076,21.063,18.981106]
[1680383431543,17.0,21.075,21.063,18.981106]
[1680383432242,10.0,21.076,21.063,18.981106]
[1680383432553,10.0,21.079,21.063,18.981106]
[1680383432751,17.0,21.078,21.064,10.0]
[1680383434252,10.0,21.077,21.064,10.0]
[1680383435454,10.0,21.077,21.063,18.981106]
[1680383435658,17.0,21.076,21.063,18.981106]
[1680383435860,10.0,21.075,21.06,10.0]
[1680383436159,17.0,21.074,21.06,10.0]
[1680383438947,10.0,21.073,21.06,10.0]
[1680383439255,17.0,21.072,21.06,10.0]
[1680383439470,17.0,21.072,21.057,10.0]
[1680383439664,17.0,21.072,21.058,20.0]
[1680383439861,17.0,21.072,21.059,10.0]
[1680383440162,17.0,21.072,21.061,10.0]
[1680383440863,17.0,21.072,21.059,10.0]
[1680383441047,17.0,21.072,21.06,20.0]
[1680383441656,17.0,21.072,21.049,23.753]
[1680383441657,26.88,21.07,21.049,23.753]
[1680383441848,26.88,21.07,21.045,30.0]
[1680383441849,17.0,21.069,21.045,30.0]
[1680383442049,24.13032348,21.069,21.045,30.0]
[1680383442248,26.88,21.06,21.046,10.0]
[1680383442658,17.0,21.059,21.046,10.0]
[1680383448263,17.0,21.059,21.053,18.99016]
[1680383448665,26.88,21.06,21.053,18.99016]
[1680383448862,7.13032348,21.064,21.053,18.99016]
[1680383449363,10.0,21.067,21.053,18.99016]
[1680383449564,17.13032348,21.067,21.053,18.99016]
[1680383450976,10.0,21.065,21.053,18.99016]
[1680383451273,17.0,21.064,21.053,18.99016]
[1680383452477,108.4557,21.068,21.053,18.99016]
[1680383452685,108.4557,21.068,21.054,10.0]
[1680383453770,17.0,21.067,21.054,10.0]
[1680383453966,108.4557,21.068,21.054,10.0]
[1680383454167,17.0,21.067,21.054,10.0]
[1680383456579,108.4557,21.068,21.054,10.0]
[1680383456780,108.4557,21.068,21.055,17.0]
[1680383457174,108.4557,21.068,21.056,10.0]
[1680383458887,17.13032348,21.077,21.057,17.0]
[1680383459068,115.1589,21.076,21.057,17.0]
[1680383459268,122.28922348,21.076,21.057,17.0]
[1680383459482,7.13032348,21.075,21.057,17.0]
[1680383459783,17.13032348,21.075,21.058,10.0]
[1680383460275,17.13032348,21.075,21.059,17.0]
[1680383460586,10.0,21.075,21.06,10.0]
[1680383462882,10.0,21.075,21.062,10.0]
[1680383464989,10.0,21.075,21.061,17.0]
[1680383465186,18.999961,21.072,21.058,10.0]
[1680383465491,17.0,21.071,21.058,10.0]
[1680383465871,10.0,21.07,21.058,10.0]
[1680383466989,36.88,21.07,21.058,10.0]
[1680383467179,17.0,21.069,21.056,10.0]
[1680383470988,17.0,21.069,21.053,118.6799]
[1680383471679,10.0,21.068,21.053,118.6799]
[1680383471876,17.0,21.067,21.053,118.6799]
[1680383472594,17.0,21.067,21.054,10.0]
[1680383475996,17.0,21.067,21.053,118.6799]
[1680383478187,17.0,21.067,21.054,10.0]
[1680383480999,17.0,21.067,21.053,118.6799]
[1680383481398,17.0,21.067,21.048,18.99433]
[1680383481589,26.82,21.06,21.048,18.99433]
[1680383481786,17.0,21.059,21.048,18.99433]
[1680383482590,17.0,21.059,21.049,10.0]
[1680383486394,26.82,21.06,21.049,10.0]
[1680383488709,26.82,21.06,21.051,10.0]
[1680383489698,26.82,21.06,21.049,10.0]
[1680383497014,10.0,21.066,21.049,10.0]
[1680383497312,10.0,21.064,21.049,10.0]
[1680383497512,17.0,21.063,21.049,10.0]
[1680383508410,118.7256,21.067,21.049,10.0]
[1680383508611,118.7256,21.067,21.05,17.0]
[1680383508612,17.0,21.066,21.05,17.0]
[1680383509222,26.88,21.07,21.051,10.0]
[1680383509407,26.88,21.07,21.051,17.13032348]
[1680383509722,26.88,21.07,21.052,7.13032348]
[1680383509912,26.88,21.07,21.053,17.0]
[1680383510113,26.88,21.07,21.054,10.0]
[1680383510313,26.88,21.07,21.056,10.0]
[1680383511324,26.88,21.07,21.057,17.0]
[1680383511707,26.88,21.07,21.058,10.0]
[1680383511919,26.88,21.07,21.059,17.0]
[1680383516021,26.88,21.07,21.058,10.0]
[1680383516829,27.0,21.069,21.056,10.0]
[1680383517231,10.0,21.068,21.056,10.0]
[1680383519327,10.0,21.068,21.054,121.2965]
[1680383519528,17.0,21.067,21.054,121.2965]
[1680383519725,10.0,21.066,21.054,121.2965]
[1680383520330,17.0,21.067,21.054,121.2965]
[1680383520831,17.0,21.069,21.054,121.2965]
[1680383524138,17.0,21.069,21.056,10.0]
[1680383528637,17.0,21.069,21.054,121.2965]
[1680383528834,17.0,21.069,21.051,17.13032348]
[1680383528835,17.0,21.069,21.051,7.13032348]
[1680383529034,17.0,21.069,21.047,10.0]
[1680383529239,129.061,21.068,21.05,20.0]
[1680383529436,17.0,21.067,21.05,20.0]
[1680383529636,10.0,21.066,21.05,20.0]
[1680383529831,17.0,21.065,21.05,20.0]
[1680383530026,17.0,21.065,21.046,10.0]
[1680383530235,53.57,21.06,21.046,10.0]
[1680383530425,17.0,21.059,21.046,10.0]
[1680383539338,26.69,21.06,21.047,17.0]
[1680383539534,26.69,21.06,21.048,10.0]
[1680383542344,26.69,21.06,21.046,10.0]
[1680383542534,17.0,21.059,21.046,10.0]
[1680383548750,26.69,21.06,21.046,10.0]
[1680383548957,10.0,21.064,21.048,10.0]
[1680383549251,113.4056,21.065,21.048,10.0]
[1680383549442,113.4056,21.065,21.05,10.0]
[1680383550439,17.0,21.064,21.05,10.0]
[1680383550639,10.0,21.063,21.05,10.0]
[1680383553558,27.0,21.064,21.05,10.0]
[1680383557963,10.0,21.063,21.05,10.0]
[1680383562385,10.0,21.063,21.048,10.0]
[1680383562585,10.0,21.061,21.048,10.0]
[1680383562779,10.0,21.059,21.046,10.0]
[1680383563872,26.82,21.06,21.046,10.0]
[1680383564074,17.0,21.059,21.046,10.0]
[1680383565991,17.0,21.059,21.043,130.87452348]
[1680383565992,17.0,21.059,21.043,120.87452348]
[1680383566183,17.0,21.059,21.044,10.0]
[1680383577195,26.82,21.06,21.045,17.0]
[1680383577394,10.0,21.063,21.046,10.0]
[1680383577596,17.0,21.062,21.048,10.0]
[1680383582386,17.0,21.063,21.048,10.0]
[1680383592303,10.0,21.066,21.048,10.0]
[1680383592503,119.061,21.068,21.049,17.0]
[1680383592710,119.061,21.068,21.05,21.29]
[1680383593000,119.061,21.068,21.051,37.0]
[1680383593407,119.061,21.068,21.052,10.0]
[1680383593703,119.061,21.068,21.053,17.0]
[1680383594088,119.061,21.068,21.054,10.0]
[1680383594292,119.061,21.068,21.055,17.0]
[1680383594505,119.061,21.068,21.056,10.0]
[1680383604701,119.061,21.068,21.054,10.0]
[1680383604903,119.061,21.068,21.053,10.0]
[1680383605817,17.0,21.064,21.051,20.0]
[1680383605998,17.0,21.064,21.05,20.0]
[1680383606415,10.0,21.063,21.05,20.0]
[1680383606604,17.0,21.062,21.05,20.0]
[1680383606805,10.0,21.061,21.05,20.0]
[1680383610114,17.0,21.062,21.05,20.0]
[1680383628842,10.0,21.064,21.051,10.0]
[1680383630026,119.061,21.068,21.051,10.0]
[1680383630233,119.061,21.068,21.052,17.0]
[1680383630632,119.061,21.068,21.052,24.13032348]
[1680383630949,119.061,21.068,21.053,10.0]
[1680383631150,119.061,21.068,21.054,17.0]
[1680383631538,119.061,21.068,21.055,10.0]
[1680383633538,53.48,21.08,21.056,17.0]
[1680383633743,118.3938,21.075,21.056,17.0]
[1680383633944,118.3938,21.075,21.057,10.0]
[1680383634241,118.3938,21.075,21.058,17.0]
[1680383634441,118.3938,21.075,21.059,10.0]
[1680383634644,118.3938,21.075,21.06,17.0]
[1680383634834,17.0,21.074,21.06,17.0]
[1680383635039,17.0,21.074,21.061,10.0]
[1680383644755,118.3938,21.075,21.061,10.0]
[1680383645160,17.0,21.074,21.061,10.0]
[1680383649052,118.3938,21.075,21.059,10.0]
[1680383649246,118.3938,21.075,21.06,20.0]
[1680383649247,27.0,21.074,21.06,20.0]
[1680383649853,26.79,21.07,21.056,10.0]
[1680383650166,10.0,21.069,21.056,10.0]
[1680383650463,17.0,21.068,21.056,10.0]
[1680383658070,17.0,21.068,21.056,10.0]
[1680383660455,17.0,21.068,21.054,226.3447]
[1680383660658,17.0,21.068,21.055,10.0]
[1680383663873,17.0,21.068,21.051,10.0]
[1680383664260,10.0,21.067,21.051,10.0]
[1680383664471,17.0,21.066,21.051,10.0]
[1680383664657,10.0,21.065,21.051,10.0]
[1680383664859,17.0,21.064,21.051,10.0]
[1680383670558,17.0,21.064,21.051,58.4465538]
[1680383679294,17.0,21.064,21.051,10.0]
[1680383679992,17.0,21.064,21.048,10.0]
[1680383680202,17.0,21.064,21.05,10.0]
[1680383680398,17.0,21.064,21.051,20.0]
[1680383680587,17.0,21.064,21.052,10.0]
[1680383692098,17.0,21.064,21.051,20.0]
[1680383692303,17.0,21.064,21.05,10.0]
[1680383692502,17.0,21.064,21.051,20.0]
[1680383692707,17.0,21.064,21.052,10.0]
[1680383693802,17.0,21.064,21.051,20.0]
[1680383694001,116.4719,21.065,21.048,20.0]
[1680383694189,116.4719,21.065,21.051,48.4465538]
[1680383695404,17.0,21.064,21.051,48.4465538]
[1680383695895,17.0,21.064,21.048,20.0]
[1680383696502,17.0,21.064,21.047,20.0]
[1680383701411,116.4719,21.065,21.047,27.13032348]
[1680383701716,116.4719,21.065,21.05,23.752]
[1680383702009,116.4719,21.065,21.051,37.0]
[1680383702199,116.4719,21.065,21.051,85.4465538]
[1680383702602,26.84,21.07,21.054,23.748]
[1680383702803,26.84,21.07,21.055,17.0]
[1680383703599,117.6818,21.075,21.055,17.0]
[1680383705313,17.0,21.074,21.055,17.0]
[1680383711616,109.8734,21.076,21.055,65.4465538]
[1680383712503,109.8734,21.076,21.056,20.0]
[1680383712705,109.8734,21.076,21.057,17.0]
[1680383712910,109.8734,21.076,21.057,24.13032348]
[1680383713216,109.8734,21.076,21.058,20.0]
[1680383713409,109.8734,21.076,21.059,17.0]
[1680383713616,109.8734,21.076,21.06,20.0]
[1680383713916,109.8734,21.076,21.061,17.0]
[1680383715213,17.0,21.075,21.061,17.0]
[1680383715825,109.8734,21.076,21.061,17.0]
[1680383716015,17.0,21.075,21.061,17.0]
[1680383724326,17.0,21.075,21.06,20.0]
[1680383724626,17.0,21.075,21.061,20.0]
[1680383724925,17.0,21.075,21.056,20.0]
[1680383725120,17.0,21.075,21.057,17.0]
[1680383725323,17.0,21.075,21.058,20.0]
[1680383725529,17.0,21.075,21.059,17.0]
[1680383726024,17.0,21.075,21.06,20.0]
[1680383726225,17.0,21.075,21.061,17.0]
[1680383727023,109.8734,21.076,21.061,17.0]
[1680383746335,17.0,21.075,21.061,17.0]
[1680383749143,109.8734,21.076,21.061,17.0]
[1680383770665,109.8734,21.076,21.063,23.737]
[1680383770856,109.8734,21.076,21.064,17.0]
[1680383782686,109.8734,21.076,21.064,65.4465538]
[1680383817703,23.712,21.086,21.064,65.4465538]
[1680383817905,21.4,21.09,21.065,138.10502348]
[1680383818204,21.4,21.09,21.066,24.13032348]
[1680383818392,21.4,21.09,21.067,20.0]
[1680383818592,21.4,21.09,21.068,17.0]
[1680383818792,109.2324,21.086,21.069,20.0]
[1680383818992,109.2324,21.086,21.07,17.0]
[1680383819187,109.2324,21.086,21.071,20.0]
[1680383819514,109.2324,21.086,21.072,17.0]
[1680383823611,109.2324,21.086,21.071,20.0]
[1680383823813,17.0,21.085,21.068,20.0]
[1680383824900,17.0,21.085,21.069,17.0]
[1680383825100,17.0,21.085,21.07,20.0]
[1680383825411,17.0,21.085,21.071,17.0]
[1680383830112,17.0,21.085,21.07,20.0]
[1680383830416,21.41,21.08,21.067,20.0]
[1680383830619,21.41,21.08,21.068,17.0]
[1680383830811,21.41,21.08,21.069,20.0]
[1680383831403,21.41,21.08,21.061,72.1865538]
[1680383831620,17.0,21.079,21.061,23.74]
[1680383832906,17.0,21.079,21.062,17.0]
[1680383837322,21.41,21.08,21.062,65.4465538]
[1680383846921,21.41,21.08,21.062,181.8410538]
[1680383853331,21.41,21.08,21.063,30.86732348]
[1680383853526,21.41,21.08,21.064,17.0]
[1680383853722,21.41,21.08,21.064,24.13032348]
[1680383856532,21.41,21.08,21.065,7.13032348]
[1680383856725,21.41,21.08,21.066,17.0]
[1680383860315,21.41,21.08,21.066,47.86432348]
[1680383867128,109.2324,21.086,21.066,47.86432348]
[1680383871637,21.41,21.08,21.066,47.86432348]
[1680383879962,21.41,21.08,21.065,108.2129]
[1680383881370,21.41,21.08,21.066,17.0]
[1680383897205,109.2324,21.086,21.066,17.0]
[1680383897372,17.0,21.085,21.066,17.0]
[1680383897569,17.0,21.085,21.065,17.0]
[1680383898386,17.0,21.085,21.065,133.8953]
[1680383899488,17.0,21.086,21.065,133.8953]
[1680383903592,17.0,21.086,21.065,133.8953]
[1680383911500,17.0,21.086,21.065,141.02562348]
[1680383913083,114.4707,21.087,21.065,189.47217728]
[1680383914700,114.4707,21.087,21.07,21.45]
[1680383914997,114.4707,21.087,21.071,37.0]
[1680383922398,114.4707,21.087,21.071,20.0]
[1680383923804,114.4707,21.087,21.072,17.0]
[1680383950429,112.2203,21.086,21.072,17.0]
[1680383958738,112.2203,21.086,21.072,24.13032348]
[1680383959038,112.2203,21.086,21.072,72.57687728]
[1680383961635,112.2203,21.086,21.074,23.724]
[1680383961833,112.2203,21.086,21.075,17.0]
[1680383972035,112.2203,21.086,21.074,23.724]
[1680383972443,112.2203,21.086,21.075,17.0]
[1680383989660,114.4707,21.087,21.076,20.0]
[1680383989862,114.4707,21.087,21.086,0.08130089]
[1680383990470,113.7498,21.097,21.086,0.08130089]
[1680383994871,0.02558144,21.086,21.078,43.721]
[1680383995074,0.02558144,21.086,21.079,17.0]
[1680383995290,0.02558144,21.086,21.08,20.0]
[1680383995579,0.02558144,21.086,21.081,17.0]
[1680384008886,0.02558144,21.086,21.08,20.0]
[1680384009189,0.02558144,21.086,21.077,20.0]
[1680384009381,0.02558144,21.086,21.074,20.0]
[1680384009688,0.02558144,21.086,21.075,30.0]
[1680384009892,0.02558144,21.086,21.076,20.0]
[1680384011293,0.02558144,21.086,21.075,20.0]
[1680384011777,0.02558144,21.086,21.076,17.0]
[1680384011977,0.02558144,21.086,21.077,20.0]
[1680384012182,0.02558144,21.086,21.078,17.0]
[1680384012383,0.02558144,21.086,21.079,20.0]
[1680384012881,0.02558144,21.086,21.08,17.0]
[1680384013500,0.02558144,21.086,21.081,20.0]
[1680384014981,0.02558144,21.086,21.07,21.45]
[1680384015181,0.02558144,21.086,21.071,20.0]
[1680384016186,0.02558144,21.086,21.071,27.13032348]
[1680384016386,0.02558144,21.086,21.072,17.0]
[1680384017879,0.02558144,21.086,21.072,24.13032348]
[1680384021485,21.4,21.08,21.071,40.0]
[1680384027404,116.1144,21.087,21.071,40.0]
[1680384027600,115.9318,21.086,21.071,40.0]
[1680384027900,132.9318,21.086,21.071,40.0]
[1680384029103,115.9318,21.086,21.071,40.0]
[1680384029292,115.9318,21.086,21.072,17.0]
[1680384031389,115.9318,21.086,21.066,26.51864004]
[1680384031594,26.81,21.08,21.066,26.51864004]
[1680384031795,26.81,21.08,21.062,23.738]
[1680384032111,26.81,21.08,21.064,30.0]
[1680384032490,26.81,21.08,21.062,23.738]
[1680384033104,26.81,21.08,21.063,17.0]
[1680384035412,123.06212348,21.086,21.063,17.0]
[1680384036095,123.06212348,21.086,21.063,24.13032348]
[1680384038713,123.06212348,21.086,21.063,44.13032348]
[1680384039401,115.9318,21.086,21.064,20.0]
[1680384039601,115.9318,21.086,21.065,17.0]
[1680384039802,115.9318,21.086,21.066,20.0]
[1680384040008,115.9318,21.086,21.067,17.0]
[1680384040613,115.9318,21.086,21.068,20.0]
[1680384040814,115.9318,21.086,21.069,17.0]
[1680384041000,115.9318,21.086,21.07,20.0]
[1680384041197,115.9318,21.086,21.071,17.0]
[1680384076342,115.9318,21.086,21.07,20.0]
[1680384076543,17.0,21.085,21.071,20.0]
[1680384076731,17.0,21.085,21.067,20.0]
[1680384077045,17.0,21.085,21.068,17.0]
[1680384077228,17.0,21.085,21.069,20.0]
[1680384092558,21.4,21.08,21.069,20.0]
[1680384093964,21.4,21.08,21.067,20.0]
[1680384103368,21.4,21.08,21.068,17.0]
[1680384103566,21.4,21.08,21.069,20.0]
[1680384105468,21.4,21.08,21.067,20.0]
[1680384122306,17.0,21.079,21.061,43.74]
[1680384123380,17.0,21.079,21.061,23.74]
[1680384123691,17.0,21.079,21.062,17.0]
[1680384131484,17.0,21.079,21.061,17.0]
[1680384131884,17.0,21.079,21.061,24.13032348]
[1680384140693,17.0,21.079,21.061,7.13032348]
[1680384141600,117.4901,21.078,21.061,7.13032348]
[1680384141795,17.0,21.077,21.061,7.13032348]
[1680384141995,117.4901,21.078,21.061,7.13032348]
[1680384142598,117.4901,21.078,21.062,17.0]
[1680384142992,117.4901,21.078,21.061,17.0]
[1680384147814,117.4901,21.078,21.061,17.0]
[1680384148622,117.4901,21.078,21.062,7.13032348]
[1680384148810,117.4901,21.078,21.063,17.0]
[1680384149111,117.4901,21.078,21.063,7.13032348]
[1680384151413,117.4901,21.078,21.064,17.0]
[1680384151802,117.4901,21.078,21.064,24.13032348]
[1680384163828,21.4,21.08,21.064,24.13032348]
[1680384167830,21.4,21.08,21.064,78.9130914]
[1680384168733,21.4,21.08,21.065,222.0391]
[1680384168933,21.4,21.08,21.066,17.0]
[1680384169236,21.4,21.08,21.066,24.13032348]
[1680384172629,21.4,21.08,21.067,7.13032348]
[1680384172834,21.4,21.08,21.068,17.0]
[1680384173239,118.1685,21.086,21.068,17.0]
[1680384173439,118.1685,21.086,21.069,27.13032348]
[1680384173730,118.1685,21.086,21.07,38.34]
[1680384173935,118.1685,21.086,21.071,20.0]
[1680384174136,118.1685,21.086,21.072,17.0]
[1680384174536,118.1685,21.086,21.071,17.0]
[1680384174843,118.1685,21.086,21.071,24.13032348]
[1680384221069,118.1685,21.086,21.071,17.0]
[1680384228071,118.1685,21.086,21.071,24.13032348]
[1680384237975,118.1685,21.086,21.071,7.13032348]
[1680384238280,21.4,21.08,21.069,20.0]
[1680384238478,21.4,21.08,21.07,20.0]